[Event "RUS-chTW Premier 2019"]
[Site "Sochi"]
[Date "2019.05.10"]
[Round "9.1"]
[White "Ushenina, Anna"]
[Black "Goltseva, Ekaterina"]
[Result "0-1"]
[ECO "D41"]
[WhiteElo "2442"]
[BlackElo "2284"]
[Annotator "NA"]
[PlyCount "90"]
[EventDate "2019.05.01"]
[EventType "team-tourn"]
[EventCountry "RUS"]
[SourceTitle "playchess.com"]
[Source "ChessBase"]
[SourceQuality "1"]
[TimeControl "40/5400+30:1800+30"]

1. d4 {[%emt 0:00:00]} d5 {[%emt 0:00:00]} 2. Nf3 {[%emt 0:00:00]} Nf6 {[%emt 0:00:29]} 3. c4 {[%emt 0:00:04]} e6 {[%emt 0:00:26]} 4. Nc3 {[%emt 0:00:39]} c5 {[%emt 0:00:32]} 5. cxd5 {[%emt 0:00:24]} Nxd5 {[%emt 0:00:26]} 6. e4 {[%emt 0:02:05]} Nxc3 {[%emt 0:00:14]} 7. bxc3 {[%emt 0:00:02]} cxd4 {[%emt 0:00:11]} 8. cxd4 {[%emt 0:00:01]} Bb4+ {[%emt 0:00:07]} 9. Bd2 {[%emt 0:00:02]} Bxd2+ {[%emt 0:00:07]} 10. Qxd2 {[%emt 0:00:03]} O-O {[%emt 0:00:35]} 11. Rd1 {[%emt 0:12:25] D41: Queen's Gambit Declined: Semi-Tarrasch with 5 cxd5} (11. Rc1 b6 12. Bd3 Bb7 13. Qe3 Nc6 14. O-O Rc8 15. Bb1 Qe7 16. Rfd1 Na5 17. h4 Rxc1 18. Rxc1 Rc8 19. Rxc8+ Bxc8 {½-½ (29) Nakamura,H (2746)-Dominguez Perez,L (2739) Saint Louis 2019}) 11... b6 {[%emt 0:14:01]} 12. Qe3 {[%emt 0:03:20]} Bb7 {[%emt 0:02:46]} 13. Bd3 {[%emt 0:00:27]} Nc6 $146 {[%emt 0:06:48]} ({Predecessor:} 13... Qe7 14. O-O Nd7 15. e5 Bxf3 16. Qxf3 Rfd8 17. Rfe1 Nf8 18. Be4 Rac8 19. Qb3 {½-½ (32) Michalis,C (1541)-Aggelakis,I (1654) Rio 2018}) 14. O-O {[%emt 0:01:36]} Re8 {[%emt 0:08:06]} 15. Bb1 {[%emt 0:02:59]} h6 {[%emt 0:04:29]} 16. Rfe1 {[%emt 0:05:04]} Rc8 {[%emt 0:04:46]} 17. d5 {[%emt 0:26:21]} exd5 {[%emt 0:04:13]} 18. e5 {[%emt 0:00:05]} Ba6 {[%emt 0:13:08]} 19. Qf4 {[%emt 0:04:34]} Bc4 {[%emt 0:13:04]} 20. h4 {[%emt 0:03:56]} Re6 {[%emt 0:05:36]} 21. Bf5 {[%emt 0:24:37]} Bxa2 {[%emt 0:11:32]} 22. Bxe6 {[%emt 0:24:43]} fxe6 {[%emt 0:00:03]} 23. Re3 {[%emt 0:01:44]} Qe7 {[%emt 0:01:34]} 24. Nh2 {[%emt 0:03:11]} b5 {[%emt 0:05:33]} 25. Rg3 {[%emt 0:03:49]} Kh7 {[%emt 0:01:39]} 26. Ng4 {[%emt 0:02:07]} Rf8 {[%emt 0:02:54]} 27. Qd2 {[%emt 0:01:55]} Bc4 {[%emt 0:00:43]} 28. Qc2+ {[%emt 0:00:05]} Kh8 {[%emt 0:00:26]} 29. Qd2 {[%emt 0:03:44]} Rf7 {[%emt 0:00:40]} 30. Ra1 {[%emt 0:00:36]} b4 {[%emt 0:00:58]} 31. Re1 {[%emt 0:00:47]} b3 {[%emt 0:02:17]} 32. Ree3 {[%emt 0:00:47]} Qb4 {[%emt 0:00:33]} 33. Qb2 {[%emt 0:00:51]} Ne7 {[%emt 0:01:12]} 34. Ref3 {[%emt 0:00:36]} Rxf3 {[%emt 0:00:36]} 35. Rxf3 {[%emt 0:00:04]} Nf5 {[%emt 0:00:23]} 36. h5 {[%emt 0:00:54]} Be2 {[%emt 0:01:49]} 37. Qxb3 {[%emt 0:01:13]} Qxg4 {[%emt 0:00:10]} 38. Rh3 {[%emt 0:00:30]} Bc4 {[%emt 0:00:49]} 39. Qb8+ {[%emt 0:00:11]} Kh7 {[%emt 0:00:03]} 40. Qe8 {[%emt 0:00:00]} Nd4 {[%emt 0:00:00]} 41. Kh2 {[%emt 0:09:52]} Ne2 {[%emt 0:04:33]} 42. g3 {[%emt 0:05:43]} Bd3 {[%emt 0:02:14]} 43. Qf7 {[%emt 0:00:34]} Bf5 {[%emt 0:00:32]} 44. Rh4 {[%emt 0:00:04]} Qf3 {[%emt 0:00:23]} 45. Qxa7 {[%emt 0:00:29]} d4 {[%emt 0:00:38]} 0-1

[Event "RUS-chTW Premier 2019"]
[Site "Sochi"]
[Date "2019.05.10"]
[Round "9.2"]
[White "Vifleemskaia, Svetlana"]
[Black "Pogonina, Natalija"]
[Result "0-1"]
[ECO "C54"]
[WhiteElo "1969"]
[BlackElo "2453"]
[Annotator "ChessBase"]
[PlyCount "117"]
[EventDate "2019.05.01"]
[EventType "team-tourn"]
[EventCountry "RUS"]
[SourceTitle "playchess.com"]
[Source "ChessBase"]
[SourceQuality "1"]
[TimeControl "40/5400+30:1800+30"]

1. e4 {[%emt 0:00:00]} e5 {[%emt 0:00:00]} 2. Nf3 {[%emt 0:00:00]} Nc6 {[%emt 0:00:00]} 3. Bc4 {[%emt 0:00:57]} Bc5 {[%emt 0:00:36]} 4. c3 {[%emt 0:01:04]} Nf6 {[%emt 0:00:13]} 5. d4 {[%emt 0:00:33]} exd4 {[%emt 0:00:18]} 6. e5 {[%emt 0:00:56]} d5 {[%emt 0:00:36]} 7. Bb5 {[%emt 0:00:28]} Ne4 {[%emt 0:00:08]} 8. cxd4 {[%emt 0:00:11]} Bb6 {[%emt 0:00:10]} 9. Nc3 {[%emt 0:00:40]} O-O {[%emt 0:02:48]} 10. Be3 {[%emt 0:02:33]} Nxc3 {[%emt 0:13:01]} 11. bxc3 {[%emt 0:00:10]} f6 {[%emt 0:00:05]} 12. exf6 {[%emt 0:26:42]} Qxf6 {[%emt 0:02:36]} 13. Qb3 {[%emt 0:05:06]} Ne7 {[%emt 0:12:13]} 14. Bd3 {[%emt 0:14:12]} c6 {[%emt 0:08:19]} 15. O-O {[%emt 0:04:08]} h6 {[%emt 0:03:25]} 16. Rae1 {[%emt 0:04:50]} Bf5 {[%emt 0:07:23]} 17. Bxf5 {[%emt 0:05:28]} Nxf5 {[%emt 0:00:28]} 18. Ne5 {[%emt 0:00:15]} Rad8 {[%emt 0:01:48]} 19. Bc1 {[%emt 0:02:08]} Rfe8 {[%emt 0:11:55]} 20. Ba3 {[%emt 0:07:16]} h5 {[%emt 0:03:20]} 21. Nf3 {[%emt 0:04:07]} Nh4 {[%emt 0:04:22]} 22. Nxh4 {[%emt 0:07:19]} Qxh4 {[%emt 0:00:06]} 23. Qc2 {[%emt 0:00:23]} Bc7 {[%emt 0:06:40]} 24. g3 Qg4 {[%emt 0:02:45]} 25. Be7 {[%emt 0:01:58]} Rd7 {[%emt 0:04:13]} 26. f3 {[%emt 0:03:02]} Qh3 {[%emt 0:00:23]} 27. Ba3 {[%emt 0:02:24]} Re6 {[%emt 0:03:53]} 28. Qg2 {[%emt 0:03:27]} Qxg2+ {[%emt 0:03:28]} 29. Kxg2 {[%emt 0:00:01]} Rxe1 {[%emt 0:00:19]} 30. Rxe1 {[%emt 0:00:01]} Kf7 {[%emt 0:00:08]} 31. f4 {[%emt 0:00:51]} Bd8 {[%emt 0:04:08]} 32. Kf3 {[%emt 0:00:17]} g6 {[%emt 0:00:43]} 33. h3 {[%emt 0:01:02]} b6 {[%emt 0:00:59]} 34. g4 {[%emt 0:00:18]} Bf6 {[%emt 0:00:23]} 35. Re3 {[%emt 0:02:34]} Bg7 {[%emt 0:02:07]} 36. g5 {[%emt 0:00:33]} Bh8 {[%emt 0:01:13]} 37. h4 {[%emt 0:01:09]} Bg7 {[%emt 0:00:05]} 38. f5 {[%emt 0:00:37]} c5 {[%emt 0:01:26]} 39. dxc5 {[%emt 0:00:49]} bxc5 {[%emt 0:00:26]} 40. Bxc5 {[%emt 0:00:00]} gxf5 {[%emt 0:00:00]} 41. Kf4 {[%emt 0:03:05]} Rc7 {[%emt 0:15:57]} 42. Bd4 {[%emt 0:04:50]} Bxd4 {[%emt 0:03:48]} 43. cxd4 {[%emt 0:00:07]} Rc2 {[%emt 0:00:03]} 44. Ra3 {[%emt 0:04:16]} Rf2+ {[%emt 0:05:05]} 45. Ke5 {[%emt 0:00:09]} f4 {[%emt 0:00:04]} 46. Rxa7+ {[%emt 0:00:25]} Kg6 {[%emt 0:00:52]} 47. Ra6+ {[%emt 0:00:12]} Kg7 {[%emt 0:00:06]} 48. Kf5 {[%emt 0:02:59]} f3 {[%emt 0:00:56]} 49. Ra7+ {[%emt 0:00:06]} Kf8 {[%emt 0:00:05]} 50. Kf6 {[%emt 0:06:48]} Re2 {[%emt 0:01:30]} 51. g6 {[%emt 0:00:40]} Re8 {[%emt 0:00:14]} 52. Rf7+ {[%emt 0:01:38]} Kg8 {[%emt 0:00:04]} 53. Kg5 {[%emt 0:00:53]} Rf8 {[%emt 0:00:33]} 54. Rh7 {[%emt 0:06:07]} f2 {[%emt 0:00:34]} 55. Kh6 {[%emt 0:00:43]} Rf6 {[%emt 0:05:17]} 56. Rg7+ {[%emt 0:03:19]} Kf8 {[%emt 0:00:06]} 57. Rb7 {[%emt 0:00:12]} f1=Q {[%emt 0:00:43]} 58. Kh7 {[%emt 0:01:32]} Qd3 {[%emt 0:01:21]} 59. Rg7 0-1

[Event "RUS-chTW Premier 2019"]
[Site "Sochi"]
[Date "2019.05.10"]
[Round "9.3"]
[White "Guseva, Marina"]
[Black "Shendrik, Zhanna"]
[Result "1-0"]
[ECO "D37"]
[WhiteElo "2402"]
[BlackElo "1954"]
[Annotator "NA"]
[PlyCount "61"]
[EventDate "2019.05.01"]
[EventType "team-tourn"]
[EventCountry "RUS"]
[SourceTitle "playchess.com"]
[Source "ChessBase"]
[SourceQuality "1"]
[TimeControl "40/5400+30:1800+30"]

1. d4 {[%emt 0:00:00]} Nf6 {[%emt 0:00:00]} 2. c4 {[%emt 0:00:00]} e6 {[%emt 0:00:00]} 3. Nf3 {[%emt 0:00:00]} d5 {[%emt 0:00:00]} 4. Nc3 {[%emt 0:00:00]} Be7 {[%emt 0:00:24]} 5. Bf4 {[%emt 0:01:12]} O-O {[%emt 0:02:33]} 6. e3 {[%emt 0:00:06]} c6 {[%emt 0:01:55]} 7. Bd3 {[%emt 0:03:11]} Nbd7 {[%emt 0:01:53]} 8. cxd5 {[%emt 0:00:24]} exd5 {[%emt 0:00:16]} 9. Qc2 {[%emt 0:00:15]} Re8 {[%emt 0:00:43]} 10. h3 {[%emt 0:03:42]} Nf8 {[%emt 0:00:38]} 11. O-O {[%emt 0:01:30]} Ng6 {[%emt 0:00:55]} 12. Bh2 {[%emt 0:01:10]} Bd6 {[%emt 0:02:04]} 13. Bxd6 {[%emt 0:06:26]} Qxd6 {[%emt 0:00:06]} 14. Rab1 {[%emt 0:00:05]} a5 {[%emt 0:06:00] D35: Queen's Gambit Declined: Exchange Variation} 15. a3 {[%emt 0:00:05] [#]} Nf8 $146 {[%emt 0:08:03]} ({Predecessor:} 15... Bd7 16. b4 axb4 17. axb4 Qe7 18. Rfc1 Ne4 19. b5 Ng5 20. Qd1 Bxh3 21. Bxg6 fxg6 22. gxh3 {1-0 (34) Khismatullin,D (2617)-Riazantsev,A (2651) Sochi 2016}) 16. Rfc1 {[%emt 0:12:50]} h6 {[%emt 0:08:23]} 17. b4 {[%emt 0:05:05]} g5 {[%emt 0:16:11]} (17... axb4 $142 18. axb4 N6d7) 18. Ne5 {[%emt 0:04:45]} N6d7 {[%emt 0:06:04]} 19. Nxd7 {[%emt 0:03:39]} Bxd7 {[%emt 0:09:31]} 20. bxa5 {[%emt 0:13:07] Discovered Attack} Qxa3 {[%emt 0:01:20]} 21. Rxb7 {[%emt 0:00:45]} Rxa5 {[%emt 0:01:18]} 22. Ne2 {[%emt 0:03:25]} c5 {[%emt 0:08:45]} 23. dxc5 {[%emt 0:10:56]} Ba4 {[%emt 0:06:29]} 24. Qb1 $18 {[%emt 0:11:44]} Rxc5 {[%emt 0:01:44]} 25. Rxc5 {[%emt 0:01:22]} Qxc5 {[%emt 0:00:18]} 26. Nd4 {[%emt 0:00:05]} Bd7 {[%emt 0:01:23]} 27. Bf5 {[%emt 0:02:48]} Be6 {[%emt 0:07:23]} 28. Qb2 {[%emt 0:02:17]} Re7 {[%emt 0:00:39]} 29. Rb8 {[%emt 0:00:22]} Qd6 {[%emt 0:04:03]} 30. Rxf8+ {[%emt 0:02:39]} Kxf8 {[%emt 0:01:01]} 31. Nb5 {[%emt 0:00:05]} 1-0

[Event "RUS-chTW Premier 2019"]
[Site "Sochi"]
[Date "2019.05.10"]
[Round "9.4"]
[White "Zavivaeva, Emilia"]
[Black "Kovanova, Baira"]
[Result "0-1"]
[ECO "C47"]
[WhiteElo "1789"]
[BlackElo "2349"]
[Annotator "NA"]
[PlyCount "104"]
[EventDate "2019.05.01"]
[EventType "team-tourn"]
[EventCountry "RUS"]
[SourceTitle "playchess.com"]
[Source "ChessBase"]
[SourceQuality "1"]
[TimeControl "40/5400+30:1800+30"]

1. e4 {[%emt 0:00:00]} e5 {[%emt 0:00:00]} 2. Nf3 {[%emt 0:00:00]} Nc6 {[%emt 0:00:00]} 3. Nc3 {[%emt 0:00:00]} Nf6 {[%emt 0:00:20]} 4. d4 {[%emt 0:00:25]} exd4 {[%emt 0:00:50]} 5. Nxd4 {[%emt 0:00:02]} Bc5 {[%emt 0:01:15]} 6. Nxc6 {[%emt 0:00:23]} bxc6 {[%emt 0:00:22]} 7. Bd3 {[%emt 0:02:49]} O-O {[%emt 0:02:30]} 8. O-O {[%emt 0:00:16]} Re8 {[%emt 0:02:26] C47: Scotch Four Knights and Four Knights with 4 g3} 9. Bg5 {[%emt 0:01:01]} h6 {[%emt 0:00:09]} 10. Bf4 {[%emt 0:02:45]} (10. Bh4 Rb8 11. Kh1 d5 12. exd5 cxd5 13. Nxd5 Qxd5 14. Bxf6 Bb7 15. Qg4 Qxg2+ 16. Qxg2 Bxg2+ 17. Kxg2 gxf6 18. b3 {1-0 (64) Artemiev,V (2691)-Mamedyarov,S (2799) Moscow 2017}) 10... d6 $146 {[%emt 0:04:09]} ({Predecessor:} 10... Rb8 11. Re1 d6 12. Na4 Bg4 13. Qd2 Bb4 14. c3 Ba5 15. b4 Bb6 16. Nxb6 axb6 {0-1 (35) Kalairajah,S (1830)-Spanton,T (1978) Hastings 2011}) 11. h3 {[%emt 0:03:20]} Bd4 {[%emt 0:05:10]} 12. Re1 {[%emt 0:06:40]} Nd7 {[%emt 0:09:26]} 13. Bc4 {[%emt 0:18:38]} Qf6 {[%emt 0:03:23]} 14. Bg3 {[%emt 0:06:57]} Nc5 {[%emt 0:05:49]} 15. Qh5 {[%emt 0:22:41]} Be6 {[%emt 0:04:52]} 16. Bxe6 {[%emt 0:02:18]} Rxe6 {[%emt 0:02:04]} 17. Qf3 {[%emt 0:12:01]} Qe7 {[%emt 0:02:41]} ({Black should try} 17... Rb8 $17 18. Qxf6 gxf6) 18. Rad1 $1 {[%emt 0:06:35]} Rf6 {[%emt 0:09:07]} 19. Qg4 {[%emt 0:00:53]} Bxc3 {[%emt 0:06:59]} 20. bxc3 {[%emt 0:00:09]} Rg6 {[%emt 0:06:43]} 21. Qf3 {[%emt 0:01:01]} Re6 {[%emt 0:00:58]} 22. Rd4 {[%emt 0:02:37]} Re8 {[%emt 0:00:44]} 23. e5 {[%emt 0:06:16]} dxe5 {[%emt 0:00:14]} 24. Rc4 {[%emt 0:00:35]} a5 {[%emt 0:01:43]} 25. Qe3 {[%emt 0:01:37]} Nd7 {[%emt 0:00:41]} 26. Qf3 {[%emt 0:02:04]} e4 {[%emt 0:03:05]} 27. Qe3 {[%emt 0:00:34]} Nb6 {[%emt 0:02:39]} 28. Rd4 {[%emt 0:00:40]} f5 {[%emt 0:01:01]} 29. Qd2 {[%emt 0:00:37]} c5 {[%emt 0:01:05]} 30. Rd5 {[%emt 0:00:28]} Nxd5 {[%emt 0:00:06]} 31. Qxd5 {[%emt 0:00:04]} Qf7 {[%emt 0:00:20]} 32. Qxc5 {[%emt 0:00:20]} f4 {[%emt 0:00:22]} 33. Bh2 {[%emt 0:00:08]} e3 {[%emt 0:00:54]} 34. fxe3 {[%emt 0:00:34]} fxe3 {[%emt 0:01:02]} 35. Bg3 {[%emt 0:00:34]} e2 {[%emt 0:00:53]} 36. Qxc7 {[%emt 0:00:43]} Qg6 {[%emt 0:00:29]} 37. Bf2 {[%emt 0:01:01]} Qxc2 {[%emt 0:02:39]} 38. Qxa5 {[%emt 0:00:15]} Qe4 {[%emt 0:00:47]} 39. c4 {[%emt 0:00:56]} Qxc4 {[%emt 0:00:27]} 40. Qd2 {[%emt 0:00:00]} Rf8 {[%emt 0:00:00]} 41. Bg3 {[%emt 0:06:16]} Rf1+ {[%emt 0:04:51]} 42. Kh2 {[%emt 0:00:06]} Rxe1 {[%emt 0:01:16]} 43. Bxe1 {[%emt 0:00:07]} Ra6 {[%emt 0:01:03]} 44. Qe3 {[%emt 0:03:41]} Rxa2 {[%emt 0:04:51]} 45. Qe5 {[%emt 0:08:44]} Rc2 {[%emt 0:04:08]} 46. Qb8+ {[%emt 0:04:26]} Kh7 {[%emt 0:01:21]} 47. Qb1 {[%emt 0:00:20]} Qd3 {[%emt 0:01:32]} 48. h4 $19 {[%emt 0:01:42]} Qe4 {[%emt 0:00:46]} 49. Kg1 {[%emt 0:03:13]} Qf5 {[%emt 0:00:44]} 50. Kh2 {[%emt 0:00:17]} Rc5 {[%emt 0:00:27]} 51. Qb4 {[%emt 0:00:48]} Rc1 {[%emt 0:03:28]} 52. Qd2 {[%emt 0:00:24]} Rxe1 {[%emt 0:00:54]} 0-1

[Event "RUS-chTW Premier 2019"]
[Site "Sochi"]
[Date "2019.05.10"]
[Round "9.5"]
[White "Ovod, Evgenija"]
[Black "Borisova, Ekaterina"]
[Result "1-0"]
[ECO "B50"]
[WhiteElo "2362"]
[BlackElo "2292"]
[Annotator "NA"]
[PlyCount "69"]
[EventDate "2019.05.01"]
[EventType "team-tourn"]
[EventCountry "RUS"]
[SourceTitle "playchess.com"]
[Source "ChessBase"]
[SourceQuality "1"]
[TimeControl "40/5400+30:1800+30"]

1. e4 {[%emt 0:00:00]} c5 {[%emt 0:00:00]} 2. Nf3 {[%emt 0:00:00]} d6 {[%emt 0:00:00]} 3. d4 {[%emt 0:00:00]} Nf6 {[%emt 0:00:00]} 4. Bb5+ {[%emt 0:00:00]} Bd7 {[%emt 0:00:57]} 5. Bxd7+ {[%emt 0:00:03]} Qxd7 {[%emt 0:02:11]} 6. dxc5 {[%emt 0:00:08] B53: Sicilian: 2...d6: Lines with Qxd4} dxc5 {[%emt 0:01:40]} 7. Qe2 {[%emt 0:01:47]} Nc6 {[%emt 0:03:28]} (7... Qc6 8. Nc3 Nbd7 9. Bf4 a6 10. O-O-O e6 11. Rd2 Be7 12. Rhd1 O-O-O 13. Bd6 Bxd6 14. Rxd6 {1-0 (45) Andreikin,D (2733)-Adly,A (2603) Abu Dhabi 2016}) 8. O-O {[%emt 0:04:22]} e6 {[%emt 0:05:02]} 9. Bf4 $146 {[%emt 0:07:45]} ({Predecessor:} 9. Bg5 Be7 10. Rd1 Qc7 11. Nc3 O-O 12. e5 Ne8 13. Bxe7 Nxe7 {1-0 (39) Khegay,D (2478)-Tsoi,D (2262) Moscow 2017}) 9... Be7 {[%emt 0:08:45]} 10. Nc3 {[%emt 0:03:24]} a6 {[%emt 0:03:28]} 11. Rad1 {[%emt 0:02:23]} Qc8 {[%emt 0:00:05]} 12. e5 {[%emt 0:31:39]} Nd7 {[%emt 0:00:54]} 13. Ne4 {[%emt 0:00:05]} O-O {[%emt 0:02:27]} 14. Bg5 {[%emt 0:02:47]} Qc7 {[%emt 0:07:04]} 15. Bxe7 {[%emt 0:00:25]} Nxe7 {[%emt 0:00:29]} 16. Neg5 {[%emt 0:00:03]} Ng6 {[%emt 0:03:27]} 17. Nxh7 $1 {[%emt 0:06:30]} Rfd8 {[%emt 0:11:04]} ({Of course not} 17... Kxh7 18. Ng5+ Kg8 19. Qh5 $18) 18. Nhg5 {[%emt 0:02:25]} Ndxe5 {[%emt 0:02:12]} 19. Nd2 {[%emt 0:03:05]} Rd4 {[%emt 0:04:22]} 20. g3 {[%emt 0:02:42]} Rad8 $11 {[%emt 0:07:16]} 21. f4 {[%emt 0:04:32]} Nc6 {[%emt 0:10:02]} 22. c3 {[%emt 0:06:23]} R4d5 {[%emt 0:02:36]} 23. Nde4 {[%emt 0:00:25]} Nce7 {[%emt 0:04:58]} 24. Qh5 {[%emt 0:03:47]} Nf5 {[%emt 0:01:39]} 25. Rxd5 {[%emt 0:02:01]} exd5 {[%emt 0:02:54]} 26. Nf6+ {[%emt 0:00:39]} gxf6 {[%emt 0:03:16]} 27. Qh7+ {[%emt 0:00:06]} Kf8 {[%emt 0:00:02]} 28. Ne6+ {[%emt 0:00:07]} fxe6 {[%emt 0:00:04]} 29. Qxc7 {[%emt 0:00:06]} Re8 {[%emt 0:00:01]} 30. Qxc5+ {[%emt 0:00:45]} Kf7 {[%emt 0:00:03]} 31. g4 {[%emt 0:02:25]} Nfh4 {[%emt 0:00:12]} 32. f5 {[%emt 0:01:20]} Ne5 {[%emt 0:00:04]} 33. fxe6+ {[%emt 0:00:58]} Rxe6 {[%emt 0:00:09]} 34. Qxd5 {[%emt 0:00:32]} Nxg4 {[%emt 0:00:07]} 35. Qd7+ {[%emt 0:00:24]} 1-0

[Event "RUS-chTW Premier 2019"]
[Site "Sochi"]
[Date "2019.05.10"]
[Round "9.6"]
[White "Smirnova, Ekaterina"]
[Black "Belenkaya, Dina"]
[Result "0-1"]
[ECO "D00"]
[WhiteElo "2204"]
[BlackElo "2315"]
[Annotator "ChessBase"]
[PlyCount "152"]
[EventDate "2019.05.01"]
[EventType "team-tourn"]
[EventCountry "RUS"]
[SourceTitle "playchess.com"]
[Source "ChessBase"]
[SourceQuality "1"]
[TimeControl "40/5400+30:1800+30"]

1. d4 {[%emt 0:00:00]} d5 {[%emt 0:00:00]} 2. Bf4 {[%emt 0:00:00]} c5 {[%emt 0:00:38]} 3. e3 {[%emt 0:00:51]} Nc6 {[%emt 0:00:10]} 4. c3 {[%emt 0:00:14]} Nf6 {[%emt 0:01:28]} 5. Nd2 {[%emt 0:00:23]} e6 {[%emt 0:04:05]} 6. Ngf3 {[%emt 0:03:16]} Bd6 {[%emt 0:05:40]} 7. Bxd6 {[%emt 0:08:05]} Qxd6 {[%emt 0:00:06]} 8. Bb5 {[%emt 0:01:32]} O-O {[%emt 0:00:38]} 9. O-O {[%emt 0:00:09]} b6 {[%emt 0:04:00]} 10. Bxc6 {[%emt 0:06:28]} Qxc6 {[%emt 0:00:03]} 11. Ne5 {[%emt 0:00:05]} Qc7 {[%emt 0:00:15]} 12. f4 {[%emt 0:01:25]} Ne8 {[%emt 0:01:56]} 13. a4 {[%emt 0:14:22]} a5 {[%emt 0:01:07]} 14. Qb1 {[%emt 0:06:02]} f6 {[%emt 0:01:38]} 15. Nef3 {[%emt 0:00:33]} Nd6 {[%emt 0:00:26]} 16. g4 {[%emt 0:02:01]} Kh8 {[%emt 0:05:49]} 17. Rc1 {[%emt 0:08:51]} Ba6 {[%emt 0:03:04]} 18. b4 {[%emt 0:00:33]} Rab8 {[%emt 0:05:16]} 19. dxc5 {[%emt 0:08:48]} bxc5 {[%emt 0:00:07]} 20. b5 {[%emt 0:00:02]} Bb7 {[%emt 0:00:50]} 21. Rf1 {[%emt 0:01:04]} Rbe8 {[%emt 0:02:35]} 22. Qe1 {[%emt 0:02:20]} Qf7 {[%emt 0:09:16]} 23. Nb3 {[%emt 0:02:28]} Qc7 {[%emt 0:00:53]} 24. Nbd2 {[%emt 0:00:01]} Rc8 {[%emt 0:05:02]} 25. Qh4 {[%emt 0:03:49]} Qf7 {[%emt 0:01:21]} 26. Qg3 {[%emt 0:02:04]} Ba8 {[%emt 0:02:13]} 27. Rac1 {[%emt 0:01:33]} Rfd8 {[%emt 0:03:26]} 28. Rfd1 {[%emt 0:09:43]} Qb7 {[%emt 0:03:38]} 29. Kf2 {[%emt 0:02:51]} Re8 {[%emt 0:02:48]} 30. Kg1 {[%emt 0:01:48]} Kg8 {[%emt 0:02:10]} 31. Kf2 {[%emt 0:01:04]} Qe7 {[%emt 0:03:43]} 32. Kg1 {[%emt 0:00:14]} Rcd8 {[%emt 0:06:33]} 33. Qh4 {[%emt 0:01:36]} Qf7 {[%emt 0:01:04]} 34. Qg3 {[%emt 0:00:23]} Qb7 {[%emt 0:03:43]} 35. Kf2 {[%emt 0:00:48]} Rd7 {[%emt 0:03:57]} 36. Qg1 {[%emt 0:03:33]} e5 {[%emt 0:01:12]} 37. f5 {[%emt 0:01:23]} Nf7 {[%emt 0:02:11]} 38. Qg3 {[%emt 0:00:40]} e4 {[%emt 0:02:17]} 39. Ne1 {[%emt 0:00:14]} Ne5 {[%emt 0:01:06]} 40. h3 {[%emt 0:00:00]} Qb6 {[%emt 0:00:00]} 41. Kg1 {[%emt 0:01:33]} Red8 {[%emt 0:14:03]} 42. Nf1 {[%emt 0:01:36]} Nc4 {[%emt 0:06:31]} 43. Qf2 {[%emt 0:00:11]} Ne5 {[%emt 0:00:54]} 44. Qg3 {[%emt 0:00:08]} Bb7 {[%emt 0:00:42]} 45. Qf2 {[%emt 0:01:00]} Rd6 {[%emt 0:02:28]} 46. Qg3 {[%emt 0:00:54]} R8d7 {[%emt 0:00:38]} 47. Qf2 {[%emt 0:01:01]} Qd8 {[%emt 0:00:16]} 48. Qa2 {[%emt 0:00:10]} Kh8 {[%emt 0:01:19]} 49. Qa3 {[%emt 0:00:16]} Rc7 {[%emt 0:01:25]} 50. Qa2 {[%emt 0:00:41]} g6 {[%emt 0:01:51]} 51. Ng3 {[%emt 0:01:23]} Bc8 {[%emt 0:00:58]} 52. Qf2 {[%emt 0:00:36]} Bb7 {[%emt 0:02:57]} 53. Qd2 {[%emt 0:00:49]} Rcd7 {[%emt 0:00:50]} 54. Qf2 {[%emt 0:00:44]} Rg7 {[%emt 0:03:01]} 55. Qd2 {[%emt 0:00:16]} Nc4 {[%emt 0:01:47]} 56. Qf2 {[%emt 0:00:11]} Bc8 {[%emt 0:02:20]} 57. Kh1 {[%emt 0:00:59]} Nb6 {[%emt 0:03:07]} 58. Ra1 {[%emt 0:01:07]} Qe8 {[%emt 0:01:04]} 59. Qf4 {[%emt 0:00:30]} Nc4 {[%emt 0:00:25]} 60. Ng2 {[%emt 0:02:12]} Qe7 {[%emt 0:02:02]} 61. Rac1 {[%emt 0:01:04]} g5 {[%emt 0:01:27]} 62. Qf2 {[%emt 0:00:14]} Qe5 {[%emt 0:00:23]} 63. Nh5 {[%emt 0:00:44]} Rgd7 {[%emt 0:00:18]} 64. Qg3 {[%emt 0:00:55]} Qe8 {[%emt 0:02:15]} 65. Qf2 {[%emt 0:00:06]} Rd8 {[%emt 0:00:17]} 66. Rc2 {[%emt 0:02:43]} Nb6 {[%emt 0:00:13]} 67. Ra2 {[%emt 0:00:09]} Qe5 {[%emt 0:00:06]} 68. Qc2 {[%emt 0:01:18]} Bd7 {[%emt 0:00:40]} 69. Raa1 {[%emt 0:00:41]} Be8 {[%emt 0:00:04]} 70. Qf2 {[%emt 0:00:38]} Bxh5 {[%emt 0:02:34]} 71. gxh5 {[%emt 0:00:02]} Qxc3 {[%emt 0:00:24]} 72. h4 {[%emt 0:00:36]} Qe5 {[%emt 0:00:16]} 73. h6 {[%emt 0:00:42]} d4 {[%emt 0:00:24]} 74. exd4 {[%emt 0:00:14]} cxd4 {[%emt 0:00:07]} 75. Rac1 {[%emt 0:00:04]} e3 {[%emt 0:00:43]} 76. Qe2 {[%emt 0:00:35]} Qxf5 {[%emt 0:00:46]} 0-1